lending/lending_fUSD_20250917
["ID","MTS","AMOUNT","RATE_DAILY","PERIOD"]
[385876172,1758081050293,-500.0,0.00026623,2]
[385876173,1758081050302,-500.0,0.00026623,2]
[385876174,1758081050311,-13912.10349741,0.00026644,2]
[385876175,1758081050321,-500.0,0.00026656,2]
[385876176,1758081050330,-756.0,0.00026684,2]
[385876177,1758081050339,-899.0,0.00026684,2]
[385876178,1758081050348,-862.0,0.00026684,2]
[385876179,1758081050358,-500.0,0.00026684,2]
[385876180,1758081050367,-157.07448983,0.00026712,4]
[385876181,1758081050376,-160.63739168,0.00026712,4]
[385876182,1758081050385,-150.00000001,0.00026712,4]
[385876183,1758081050394,-156.64771004,0.00026712,4]
[385876184,1758081050403,-2000.0,0.00026716,2]
[385876185,1758081050412,-3082.0661121,0.00026717,2]
[385876186,1758081050421,-500.0,0.00026726,2]
[385876187,1758081050430,-151.0,0.00026728,7]
[385876188,1758081050439,-151.0,0.00026728,7]
[385876189,1758081050448,-151.0,0.00026728,7]
[385876190,1758081050458,-500.0,0.00026741,5]
[385876191,1758081050468,-1532.2327281,0.00026752,2]
[385876192,1758081050477,-4095.1232865,0.00026752,2]
[385876193,1758081050486,-49440.3578882,0.00026752,2]
[385876194,1758081050495,-151.0,0.00026752,7]
[385876195,1758081050504,-158.460149,0.00026752,7]
[385876196,1758081050513,-169.074687,0.00026752,7]
[385876197,1758081050522,-3500.0,0.0002676,2]
[385876198,1758081050531,-150.0,0.00026794,2]
[385876199,1758081050540,-41338.38,0.000268,7]
[385876200,1758081050549,-151.0,0.000268,7]
[385876201,1758081050558,-151.0,0.000268,7]
[385876202,1758081050568,-151.0,0.000268,7]
[385876203,1758081050577,-151.0,0.000268,7]
[385876204,1758081050587,-243.016479,0.000268,7]
[385876205,1758081050597,-243.016479,0.000268,7]
[385876206,1758081050606,-243.016479,0.000268,7]
[385876207,1758081050615,-395.757704,0.000268,7]
[385876208,1758081050625,-243.016479,0.000268,7]
[385876209,1758081050635,-395.757704,0.000268,7]
[385876210,1758081050644,-395.757704,0.000268,7]
[385876211,1758081050653,-395.757707,0.000268,7]
[385876212,1758081050662,-151.0,0.000268,7]
[385876213,1758081050671,-151.0,0.000268,7]
[385876214,1758081050680,-151.0,0.000268,7]
[385876215,1758081050689,-151.0,0.000268,7]
[385876216,1758081050699,-359.421162,0.000268,7]
[385876217,1758081050707,-359.421162,0.000268,7]
[385876218,1758081050717,-185.940381,0.000268,7]
[385876219,1758081050726,-318.143665,0.000268,7]
[385876220,1758081050736,-359.421162,0.000268,7]
[385876221,1758081050745,-975.939386,0.000268,7]
[385876222,1758081050754,-318.143665,0.000268,7]
[385876223,1758081050763,-359.421164,0.000268,7]
[385876224,1758081050772,-975.939386,0.000268,7]
[385876225,1758081050782,-318.143665,0.000268,7]
[385876226,1758081050791,-151.0,0.000268,7]
[385876227,1758081050800,-975.939386,0.000268,7]
[385876228,1758081050810,-318.143671,0.000268,7]
[385876229,1758081050820,-151.0,0.000268,7]
[385876230,1758081050830,-975.939377,0.000268,7]
[385876231,1758081050840,-151.0,0.000268,7]
[385876232,1758081050849,-254.884899,0.000268,7]
[385876233,1758081050859,-254.884899,0.000268,7]
[385876234,1758081050868,-254.884899,0.000268,7]
[385876235,1758081050878,-254.884892,0.000268,7]
[385876236,1758081050890,-151.0,0.000268,7]
[385876237,1758081050900,-500.0,0.00026891,2]
[385876238,1758081050909,-500.0,0.00026891,2]
[385876239,1758081050919,-500.0,0.00026893,2]
[385876240,1758081050929,-2100.0,0.000269,9]
[385876241,1758081050938,-500.0,0.0002693,2]
[385876242,1758081050947,-756.0,0.00026958,2]
[385876243,1758081050957,-899.0,0.00026958,2]
[385876244,1758081050968,-862.0,0.00026958,2]
[385876245,1758081050981,-500.0,0.00026958,2]
[385876246,1758081050990,-517.40723967,0.00027,2]
[385876247,1758081051000,-250.0,0.00027,2]
[385876248,1758081051009,-1014.95650947,0.00027,2]
[385876249,1758081051018,-2975.30465157,0.00027,15]
[385876250,1758081051028,-7000.0,0.00027,2]
[385876251,1758081051038,-351.72540165,0.0002706,2]
[385876252,1758081051047,-550.0,0.00027064,2]
[385876253,1758081051056,-150.0,0.00027068,2]
[385876254,1758081051066,-151.71,0.00027073,2]
[385876255,1758081051075,-150.71,0.00027073,2]
[385876256,1758081051085,-351.57375407,0.00027103,2]
[385876257,1758081051094,-555.0,0.00027137,2]
[385876258,1758081051108,-500.0,0.00027165,2]
[385876259,1758081051118,-500.0,0.00027165,2]
[385876260,1758081051127,-500.0,0.00027167,2]
[385876261,1758081051137,-1000.0,0.00027171,2]
[385876262,1758081051147,-245.6917174,0.000272,2]
[385876263,1758081051157,-500.0,0.00027204,2]
[385876264,1758081051167,-756.0,0.00027232,2]
[385876265,1758081051177,-899.0,0.00027232,2]
[385876266,1758081051187,-862.0,0.00027232,2]
[385876267,1758081051197,-500.0,0.00027232,2]
[385876268,1758081051207,-271.41817218,0.00027264,2]
[385876269,1758081051217,-256.58,0.00027268,7]
[385876270,1758081051227,-22262.86328897,0.00027283,2]
[385876271,1758081051237,-500.0,0.00027289,5]
[385876272,1758081051247,-156.28,0.00027294,2]
[385876273,1758081051256,-4000.0,0.00027308,2]
[385876274,1758081051266,-1000.0,0.00027308,2]
[385876275,1758081051276,-150.0,0.00027342,2]
[385876276,1758081051285,-4033.59123761,0.0002739,2]
[385876277,1758081051296,-7967.95907512,0.0002739,2]
[385876278,1758081051306,-3181.02322858,0.0002739,2]
[385876279,1758081051315,-500.0,0.00027396,2]
[385876280,1758081051325,-500.0,0.00027396,2]
[385876281,1758081051334,-500.0,0.00027396,2]
[385876282,1758081051344,-500.0,0.00027396,2]
[385876283,1758081051354,-500.0,0.00027396,2]
[385876284,1758081051364,-500.0,0.00027396,2]
[385876285,1758081051374,-500.0,0.00027396,2]
[385876286,1758081051387,-500.0,0.00027396,2]
[385876287,1758081051398,-500.0,0.00027396,2]
[385876288,1758081051410,-500.0,0.00027396,2]
[385876289,1758081051420,-500.0,0.00027396,2]
[385876290,1758081051433,-500.0,0.00027396,2]
[385876291,1758081051444,-500.0,0.00027396,2]
[385876292,1758081051455,-417.3085522,0.00027396,2]
[385876293,1758081051465,-151.0,0.00027396,7]
[385876294,1758081051475,-151.0,0.00027396,7]
[385876295,1758081051486,-151.0,0.00027396,7]
[385876296,1758081051497,-151.0,0.00027396,7]
[385876297,1758081051508,-151.0,0.00027396,7]
[385876298,1758081051519,-151.0,0.00027396,7]
[385876299,1758081051530,-151.0,0.00027396,7]
[385876300,1758081051539,-151.0,0.00027396,7]
[385876301,1758081051551,-151.0,0.00027396,7]
[385876302,1758081051561,-151.0,0.00027396,7]
[385876303,1758081051570,-164.026628,0.00027396,7]
[385876304,1758081051580,-151.0,0.00027396,7]
[385876305,1758081051590,-151.0,0.00027396,7]
[385876306,1758081051599,-151.0,0.00027396,7]
[385876307,1758081051609,-151.0,0.00027396,7]
[385876308,1758081051619,-169.913131,0.00027396,7]
[385876309,1758081051629,-150.0,0.00027397,2]
[385876310,1758081051640,-151.0,0.00027397,7]
[385876311,1758081051650,-151.0,0.00027397,7]
[385876312,1758081051659,-268.62,0.00027397,2]
[385876313,1758081051669,-420.14042,0.00027397,7]
[385876314,1758081051679,-420.14042,0.00027397,7]
[385876315,1758081051689,-420.140426,0.00027397,7]
[385876316,1758081051699,-150.0,0.00027397,5]
[385876317,1758081051710,-500.0,0.00027397,5]
[385876318,1758081051721,-156.38462727,0.00027397,5]
[385876319,1758081051731,-2695.94,0.00027397,2]
[385876320,1758081051741,-6464.65,0.00027397,2]
[385876321,1758081051751,-29999.99,0.00027397,2]
[385876322,1758081051760,-166.65,0.00027425,30]
[385876323,1758081051770,-500.0,0.00027439,2]
[385876324,1758081051779,-209.93293688,0.00027439,2]
[385876325,1758081051789,-500.0,0.00027441,2]
[385876326,1758081051800,-687.7019051,0.00027445,2]
[385876327,1758081051809,-207.9760814,0.00027478,2]
[385876328,1758081051819,-341.887334,0.00027488,2]
[385876329,1758081051829,-913.7455147,0.00027488,2]
[385876330,1758081051838,-11031.6349733,0.00027488,2]
[385876331,1758081051847,-218.649692,0.00027488,7]
[385876332,1758081051857,-218.649692,0.00027488,7]
[385876333,1758081051867,-218.649692,0.00027488,7]
[385876334,1758081051876,-218.649692,0.00027488,7]
[385876335,1758081051890,-197.31735642,0.000275,2]
[385876336,1758081051900,-538.96959634,0.000275,2]
[385876337,1758081051909,-756.0,0.00027506,2]
[385876338,1758081051919,-899.0,0.00027506,2]
[385876339,1758081051929,-862.0,0.00027506,2]
[385876340,1758081051938,-500.0,0.00027506,2]
[385876341,1758081051948,-265.79611589,0.00027612,5]
[385876342,1758081051958,-150.0,0.00027616,2]
[385876343,1758081051968,-172.93,0.00027645,2]
[385876344,1758081051977,-500.0,0.00027713,2]
[385876345,1758081051987,-500.0,0.00027715,2]
[385876346,1758081051997,-1500.0,0.00027719,5]
[385876347,1758081052006,-756.0,0.0002778,2]
[385876348,1758081052016,-899.0,0.0002778,2]
[385876349,1758081052026,-862.0,0.0002778,2]
[385876350,1758081052035,-402.97057617,0.0002778,2]
[385876351,1758081052045,-500.0,0.00027837,5]
[385876352,1758081052055,-1027.14595859,0.00027856,5]
[385876353,1758081052065,-216.65781096,0.0002789,2]
[385876354,1758081052075,-300.0,0.00027899,10]
[385876355,1758081052084,-300.0,0.00027899,10]
[385876356,1758081052094,-41338.38,0.000279,7]
[385876357,1758081052105,-153.647036,0.00027909,7]
[385876358,1758081052114,-250.0,0.00027945,5]
[385876359,1758081052126,-1000.0,0.00027945,5]
[385876360,1758081052136,-637.04078651,0.00027987,2]
[385876361,1758081052146,-500.0,0.00027989,2]
[385876362,1758081052156,-8244.24057665,0.00028,2]
[385876363,1758081052166,-164.88481154,0.00028,2]
[385876364,1758081052176,-13912.10349741,0.0002802,2]
[385876365,1758081052186,-756.0,0.00028054,2]
[385876366,1758081052196,-899.0,0.00028054,2]
[385876367,1758081052206,-862.0,0.00028054,2]
[385876368,1758081052216,-1262.8580435,0.00028103,2]
[385876369,1758081052226,-300.0,0.00028202,10]
[385876370,1758081052236,-151.0,0.00028203,7]
[385876371,1758081052247,-151.0,0.00028203,7]
[385876372,1758081052256,-500.0,0.00028263,2]
[385876373,1758081052265,-774.71621033,0.00028267,5]
[385876374,1758081052275,-1200.0,0.00028267,5]
[385876375,1758081052284,-756.0,0.00028327,2]
[385876376,1758081052294,-899.0,0.00028327,2]
[385876377,1758081052304,-862.0,0.00028327,2]
[385876378,1758081052314,-695.1500007,0.00028331,2]
[385876379,1758081052324,-350.0,0.00028493,5]
[385876380,1758081052334,-1161.6603673,0.00028493,5]
[385876381,1758081052344,-256.58,0.00028494,30]
[385876382,1758081052355,-244.0,0.00028536,2]
[385876383,1758081052364,-756.0,0.00028601,2]
[385876384,1758081052374,-899.0,0.00028601,2]
[385876385,1758081052383,-862.0,0.00028601,2]
[385876386,1758081052393,-156.28,0.00028659,2]
[385876387,1758081052404,-4609.0,0.00028659,2]
[385876388,1758081052414,-300.0,0.00028759,10]
[385876389,1758081052423,-12472.94450689,0.0002876,2]
[385876390,1758081052433,-300.0,0.00028766,10]
[385876391,1758081052443,-150.0,0.00028767,2]
[385876392,1758081052453,-2000.0,0.00028767,2]
[385876393,1758081052463,-2000.0,0.00028767,2]
[385876394,1758081052472,-2000.0,0.00028767,2]
[385876395,1758081052482,-2000.0,0.00028767,2]
[385876396,1758081052492,-2000.0,0.00028767,2]
[385876397,1758081052502,-2000.0,0.00028767,2]
[385876398,1758081052512,-2000.0,0.00028767,2]
[385876399,1758081052521,-2000.0,0.00028767,2]
[385876400,1758081052532,-2000.0,0.00028767,2]
[385876401,1758081052542,-2000.0,0.00028767,2]
[385876402,1758081052551,-2023.0,0.00028767,2]
[385876403,1758081052561,-22262.86328897,0.00028806,2]
[385876404,1758081052570,-756.0,0.00028875,2]
[385876405,1758081052580,-899.0,0.00028875,2]
[385876406,1758081052590,-862.0,0.00028875,2]
[385876407,1758081052600,-172.93,0.00028961,2]
[385876408,1758081052609,-7000.0,0.00029,2]
[385876409,1758081052619,-154.506146,0.00029009,7]
[385876410,1758081052628,-254.18901386,0.00029041,5]
[385876411,1758081052638,-606.93891785,0.00029092,18]
[385876412,1758081052647,-300.0,0.00029099,10]
[385876413,1758081052657,-41338.38,0.000291,7]
[385876414,1758081052667,-756.0,0.00029149,2]
[385876415,1758081052676,-899.0,0.00029149,2]
[385876416,1758081052685,-862.0,0.00029149,2]
[385876417,1758081052695,-2217.50550738,0.00029215,2]
[385876418,1758081052704,-1400.0,0.00029226,5]
[385876419,1758081052714,-13912.10349741,0.00029396,2]
[385876420,1758081052723,-155.108931,0.00029419,2]
[385876421,1758081052733,-776.97976641,0.00029423,2]
[385876422,1758081052742,-912.14410352,0.00029423,2]
[385876423,1758081052753,-876.90482914,0.00029423,2]
[385876424,1758081052763,-165.8,0.00029525,2]
[385876425,1758081052772,-256.58,0.00029721,30]
[385876426,1758081052782,-162.31721831,0.000298,2]
[385876427,1758081052792,-151.0,0.00029807,7]
[385876428,1758081052802,-151.0,0.00029807,7]
[385876429,1758081052811,-151.0,0.00029807,7]
[385876430,1758081052821,-214.025341,0.00029807,7]
[385876431,1758081052831,-151.0,0.00029807,7]
[385876432,1758081052842,-151.0,0.00029807,7]
[385876433,1758081052852,-151.0,0.00029807,7]
[385876434,1758081052862,-151.0,0.00029807,7]
[385876435,1758081052872,-151.0,0.00029807,7]
[385876436,1758081052884,-151.0,0.00029807,7]
[385876437,1758081052893,-151.0,0.00029807,7]
[385876438,1758081052903,-151.0,0.00029807,7]
[385876439,1758081052912,-151.0,0.00029807,7]
[385876440,1758081052923,-151.0,0.00029807,7]
[385876441,1758081052932,-4000.0,0.00029914,4]
[385876442,1758081052942,-1316.81906667,0.0003,2]
[385876443,1758081052952,-156.28,0.00030023,2]
[385876444,1758081052963,-182.27,0.00030024,2]
[385876445,1758081052973,-300.0,0.00030029,10]
[385876446,1758081052983,-150.86,0.00030048,2]
[385876447,1758081052993,-160.0,0.00030068,2]
[385876448,1758081053003,-160.0,0.00030068,2]
[385876449,1758081053013,-516.07479255,0.00030068,2]
[385876450,1758081053023,-160.0,0.00030068,2]
[385876451,1758081053032,-213.18994792,0.00030068,2]
[385876452,1758081053042,-617.17317377,0.00030105,5]
[385876453,1758081053052,-300.0,0.00030123,10]
[385876454,1758081053066,-43787.72821552,0.00030124,3]
[385876455,1758081053077,-325.44623276,0.00030129,10]
[385876456,1758081053396,-14642.96169138,0.0003013,2]
[385876457,1758081053407,-2162.83311662,0.0003013,5]
[385876458,1758081053416,-1183.70887696,0.0003013,5]
[385876459,1758081053426,-153.61701307,0.0003013,30]
[385876460,1758081053435,-652.26888194,0.0003013,2]
[385876461,1758081053444,-225912.57820956,0.0003013,4]
[385876462,1758081053454,-218.649692,0.0003013,7]
[385876463,1758081053463,-218.649692,0.0003013,7]
[385876464,1758081053472,-218.649692,0.0003013,7]
[385876465,1758081053481,-218.649694,0.0003013,7]
[385876466,1758081053490,-114869.7789249,0.00030135,2]
[385876467,1758081053499,-851.26773969,0.00030136,14]
[385876468,1758081053509,-150.0,0.00030136,2]
[385876469,1758081053518,-268.62,0.00030137,2]
[385876470,1758081053527,-1126.75942103,0.00030185,5]
[385876471,1758081053537,-172.93,0.00030278,2]
[385876472,1758081053547,-41338.38,0.000303,7]
[385876473,1758081053556,-22262.86328897,0.0003033,2]
[385876474,1758081053566,-166.66,0.00030391,2]
[385876475,1758081053575,-164.87388731,0.00030401,26]
[385876476,1758081053584,-1141.464,0.00030401,26]
[385876477,1758081053595,-2217.50550737,0.00030508,2]
[385876478,1758081053604,-150.0,0.00030549,2]
[385876479,1758081053614,-280.30883384,0.00030552,2]
[385876480,1758081053624,-357.25635686,0.00030554,2]
[385876481,1758081053633,-434.20387987,0.00030556,2]
[385876482,1758081053643,-511.15140289,0.00030559,2]
[385876483,1758081053652,-588.0989259,0.00030561,2]
[385876484,1758081053661,-665.04644892,0.00030563,2]
[385876485,1758081053671,-741.99397193,0.00030565,2]
[385876486,1758081053681,-818.94149495,0.00030568,2]
[385876487,1758081053691,-895.88901796,0.0003057,2]
[385876488,1758081053701,-666.0,0.00030579,10]
[385876489,1758081053710,-666.0,0.00030579,10]
[385876490,1758081053720,-666.0,0.00030579,10]
[385876491,1758081053729,-906348.07359334,0.0003058,7]
[385876492,1758081053739,-222.04085484,0.00030599,10]
[385876493,1758081053748,-666.0,0.00030599,10]
[385876494,1758081053758,-840.4,0.000306,2]
[385876495,1758081053767,-13912.10349741,0.00030772,2]
[385876496,1758081053776,-446.04016515,0.00030778,2]
[385876497,1758081053786,-1920.02521768,0.00030888,60]
[385876498,1758081053796,-2600.0,0.000309,11]
[385876499,1758081053805,-155.57436217,0.000309,2]
[385876500,1758081053814,-155.57436208,0.000309,2]
[385876501,1758081053823,-155.57436208,0.000309,2]
[385876502,1758081053833,-155.57436208,0.000309,2]
[385876503,1758081053842,-155.57436208,0.000309,2]
[385876504,1758081053851,-155.57436208,0.000309,2]
[385876505,1758081053861,-155.57436208,0.000309,2]
[385876506,1758081053871,-155.57436208,0.000309,2]
[385876507,1758081053880,-155.57436208,0.000309,2]
[385876508,1758081053892,-155.57436208,0.000309,2]
[385876509,1758081053902,-4000.0,0.00030922,4]
[385876510,1758081053911,-256.58,0.00030947,30]
[385876511,1758081053921,-672.14932845,0.00030999,10]
[385876512,1758081053934,-25638.04050429,0.00031,120]
[385876513,1758081053944,-161.0,0.00031,120]
[385876514,1758081053953,-335.04487236,0.00031,5]
[385876515,1758081053964,-155.0,0.00031,120]
[385876516,1758081053973,-213.18994792,0.00031,10]
[385876517,1758081053983,-213.18994792,0.00031,120]
[385876518,1758081053992,-7000.0,0.00031,2]
[385876519,1758081054001,-397.0,0.00031257,5]
[385876520,1758081054010,-372.15,0.00031304,2]
[385876521,1758081054020,-6453.0,0.00031357,3]
[385876522,1758081054029,-156.28,0.00031388,2]
[385876523,1758081054039,-3510.82118046,0.000314,30]
[385876524,1758081054048,-41338.38,0.000314,7]
[385876525,1758081054057,-150.0,0.00031506,2]
[385876526,1758081054066,-3000.0,0.00031593,2]
[385876527,1758081054075,-180.13689359,0.00031593,2]
[385876528,1758081054085,-151.0,0.00031593,2]
[385876529,1758081054094,-166.66,0.00031645,2]
[385876530,1758081054103,-1266.39,0.00031792,2]
[385876531,1758081054113,-2049.675,0.00031792,2]
[385876532,1758081054123,-756.0,0.00031792,2]
[385876533,1758081054132,-3406.547,0.00031792,2]
[385876534,1758081054141,-571.355,0.00031792,2]
[385876535,1758081054151,-1588.017,0.00031792,2]
[385876536,1758081054160,-1303.0,0.00031792,2]
[385876537,1758081054170,-603.418,0.00031792,2]
[385876538,1758081054179,-813.0,0.00031792,2]
[385876539,1758081054189,-6178.0,0.00031792,2]
[385876540,1758081054198,-18871.0,0.00031792,2]
[385876541,1758081054207,-4172.0,0.00031792,2]
[385876542,1758081054217,-726.0,0.00031792,2]
[385876543,1758081054226,-557.0,0.000318,2]
[385876544,1758081054236,-2217.50550737,0.000318,2]
[385876545,1758081054245,-22262.86328897,0.00031853,2]
[385876546,1758081054254,-4000.0,0.00031931,4]
[385876547,1758081054264,-1714.31886143,0.00032,15]
[385876548,1758081054274,-1248.0,0.00032,3]
[385876549,1758081054283,-800.0,0.00032054,29]
[385876550,1758081054292,-1000.0,0.00032119,2]
[385876551,1758081054302,-1000.0,0.00032122,2]
[385876552,1758081054311,-1000.0,0.00032137,2]
[385876553,1758081054320,-187.28,0.0003214,2]
[385876554,1758081054330,-13912.10349741,0.00032148,2]
[385876555,1758081054339,-1000.0,0.00032154,2]
[385876556,1758081054349,-256.58,0.00032173,30]
[385876557,1758081054358,-165.8,0.00032477,2]
[385876558,1758081054368,-1262.8580435,0.00032502,2]
[385876559,1758081054378,-200.52514854,0.00032555,2]
[385876560,1758081054387,-41338.38,0.000326,7]
[385876561,1758081054396,-800.0,0.00032602,29]
[385876562,1758081054406,-421.5,0.00032613,30]
[385876563,1758081054416,-1000.0,0.00032705,2]
[385876564,1758081054426,-156.28,0.00032753,2]
[385876565,1758081054435,-1016.21925703,0.00032876,7]
[385876566,1758081054444,-150.0,0.00032876,2]
[385876567,1758081054454,-268.62,0.00032877,2]
[385876568,1758081054463,-166.66,0.00032899,2]
[385876569,1758081054473,-3804.5,0.000329,14]
[385876570,1758081054482,-4000.0,0.0003294,4]
[385876571,1758081054491,-3111.0,0.00032962,2]
[385876572,1758081054501,-546.0,0.0003298,2]
[385876573,1758081054510,-169.0,0.00033,14]
[385876574,1758081054520,-2247.8364371,0.00033066,2]
[385876575,1758081054529,-2217.50550737,0.00033093,2]
[385876576,1758081054538,-445.20508156,0.0003315,29]
[385876577,1758081054547,-800.0,0.00033182,13]
[385876578,1758081054556,-800.0,0.00033182,13]
[385876579,1758081054566,-800.0,0.00033182,13]
[385876580,1758081054575,-800.0,0.00033182,13]
[385876581,1758081054584,-800.0,0.00033182,13]
[385876582,1758081054593,-800.0,0.00033182,13]
[385876583,1758081054602,-800.0,0.00033182,13]
[385876584,1758081054614,-800.0,0.00033182,13]
[385876585,1758081054624,-800.0,0.00033182,13]
[385876586,1758081054634,-800.0,0.00033182,13]
[385876587,1758081054643,-800.0,0.00033182,13]
[385876588,1758081054653,-800.0,0.00033182,13]
[385876589,1758081054662,-800.0,0.00033182,13]
[385876590,1758081054671,-800.0,0.00033182,13]
[385876591,1758081054680,-800.0,0.00033182,13]
[385876592,1758081054690,-800.0,0.00033182,13]
[385876593,1758081054699,-800.0,0.00033182,13]
[385876594,1758081054708,-800.0,0.00033182,13]
[385876595,1758081054718,-800.0,0.00033182,13]
[385876596,1758081054727,-800.0,0.00033182,13]
[385876597,1758081054735,-800.0,0.00033182,13]
[385876598,1758081054745,-800.0,0.00033182,13]
[385876599,1758081054754,-800.0,0.00033182,13]
[385876600,1758081054767,-232.0,0.00033182,13]
[385876601,1758081054777,-200.0,0.00033182,2]
[385876602,1758081054786,-200.0,0.00033182,2]
[385876603,1758081054796,-200.0,0.00033182,2]
[385876604,1758081054804,-200.0,0.00033182,2]
[385876605,1758081054814,-200.0,0.00033182,2]
[385876606,1758081054824,-200.0,0.00033182,2]
[385876607,1758081054833,-200.0,0.00033182,2]
[385876608,1758081054843,-200.0,0.00033182,2]
[385876609,1758081054853,-200.0,0.00033182,2]
[385876610,1758081054864,-200.0,0.00033182,2]
[385876611,1758081054874,-200.0,0.00033182,2]
[385876612,1758081054888,-200.0,0.00033182,2]
[385876613,1758081054898,-200.0,0.00033182,2]
[385876614,1758081054909,-200.0,0.00033182,2]
[385876615,1758081054919,-200.0,0.00033182,2]
[385876616,1758081054929,-200.0,0.00033182,2]
[385876617,1758081054939,-200.0,0.00033182,2]
[385876618,1758081054949,-200.0,0.00033182,2]
[385876619,1758081054959,-200.0,0.00033182,2]
[385876620,1758081054970,-200.0,0.00033182,2]
[385876621,1758081054980,-200.0,0.00033182,2]
[385876622,1758081054989,-200.0,0.00033182,2]
[385876623,1758081054999,-200.0,0.00033182,2]
[385876624,1758081055009,-200.0,0.00033182,2]
[385876625,1758081055019,-200.0,0.00033182,2]
[385876626,1758081055028,-200.0,0.00033182,2]
[385876627,1758081055039,-202.0,0.00033182,2]
[385876628,1758081055051,-2000.0,0.000332,2]
[385876629,1758081055061,-22262.86328897,0.00033377,2]
[385876630,1758081055070,-256.58,0.00033399,30]
[385876631,1758081055080,-3804.5,0.000335,14]
[385876632,1758081055089,-155.0,0.000336,120]
[385876633,1758081055099,-1000.0,0.00033704,2]
[385876634,1758081055108,-1000.0,0.00033753,2]
[385876635,1758081055118,-1192.69,0.00033781,2]
[385876636,1758081055127,-167.18,0.00033781,2]
[385876637,1758081055138,-1192.69,0.00033781,2]
[385876638,1758081055148,-885.93,0.00033781,2]
[385876639,1758081055157,-174.95,0.00033781,2]
[385876640,1758081055167,-41338.38,0.000338,14]
[385876641,1758081055176,-1000.0,0.00033807,2]
[385876642,1758081055186,-1000.0,0.00033809,2]
[385876643,1758081055195,-1000.0,0.00033853,2]
[385876644,1758081055205,-150.0,0.0003388,7]
[385876645,1758081055215,-1000.0,0.00033926,2]
[385876646,1758081055224,-4000.0,0.00033948,4]
[385876647,1758081055233,-927.52267674,0.0003395,15]
[385876648,1758081055243,-17338.82032679,0.00034,2]
[385876649,1758081055252,-2629.337626,0.00034,5]
[385876650,1758081055262,-1425.0,0.00034104,2]
[385876651,1758081055271,-166.66,0.00034152,2]
[385876652,1758081055280,-534.0,0.0003417,2]
[385876653,1758081055290,-3804.5,0.000342,14]
[385876654,1758081055299,-150.0,0.00034246,2]
[385876655,1758081055308,-8174.0,0.00034308,3]
[385876656,1758081055318,-163.41,0.00034329,60]
[385876657,1758081055327,-176.3,0.00034329,60]
[385876658,1758081055337,-3364.1088128,0.00034331,2]
[385876659,1758081055346,-156.587,0.00034332,2]
[385876660,1758081055355,-1000.0,0.00034345,2]
[385876661,1758081055366,-2217.50550737,0.00034386,2]
[385876662,1758081055375,-160.87128124,0.00034391,7]
[385876663,1758081055385,-1000.0,0.00034397,2]
[385876664,1758081055395,-163.41,0.00034429,60]
[385876665,1758081055404,-176.3,0.00034429,60]
[385876666,1758081055413,-598.41525263,0.00034435,2]
[385876667,1758081055422,-1000.0,0.00034449,2]
[385876668,1758081055432,-2071.17759145,0.000345,14]
[385876669,1758081055441,-1104.0,0.000345,7]
[385876670,1758081055450,-174.92115922,0.00034503,2]
[385876671,1758081055459,-169.0,0.00034521,30]